Cogmind - Beta 10.2 @@@ ROGUE MODE // 2021.06.14 @ 17:34:14 Player: Kenzurith Result: Destroyed by D-53 Grenadier with Mini Grenade Launcher Performance ------------- Evolutions (0) 0 Regions Visited (4) 800 Robots Destroyed (15) 75 Value Destroyed (349) 349 Prototype IDs (0) 0 Alien Tech Used (0) 0 Bonus (21) 21 TOTAL SCORE: 1245 Bonus ------- Follower Combat Kills 21 Cogmind --------- Core Integrity 0/250 Matter 250/300 Energy 125/250 System Corruption 1% Temperature Cool (0) Movement Core (650) Ox12 Location -9/Mines Parts ------- > --- POWER (1) -------- Ion Engine > --- PROPULSION (2) --- (None) > --- UTILITY (2) ------ Improved Heat Sink High-capacity Storage Unit > --- WEAPON (2) ------- (None) > --- INVENTORY (12) --- Fission Core Fission Core Light Fission Core Aluminum Leg Aluminum Leg Carbon-fiber Leg Carbon-fiber Leg High-capacity Storage Unit High-capacity Storage Unit Peak State ------------ > --- POWER ------------ Ion Engine > --- PROPULSION ------- Light Treads Light Treads > --- UTILITY ---------- Improved Heat Sink High-capacity Storage Unit > --- WEAPON ----------- Small Laser Beam Cannon > --- INVENTORY -------- Ion Engine Fission Core Fission Core Aluminum Leg Aluminum Leg Carbon-fiber Leg Carbon-fiber Leg High-capacity Storage Unit High-capacity Storage Unit Grenade Launcher [Rating: 11] Favorites ----------- Power Ion Engine Engine Ion Engine Propulsion Aluminum Leg Treads Light Treads Leg Aluminum Leg Utility Improved Heat Sink Device Improved Heat Sink Storage Small Storage Unit Weapon Small Laser Energy Gun Small Laser Energy Cannon Beam Cannon Ballistic Gun Light Assault Rifle Launcher Grenade Launcher Build | -11 -10 -10 -10 -9 ------- Run | Scr Mat Min Exi Min Slots Evolved . | . . . . . Power . | . . . . . Propulsion . | . . . . . Utility . | . . . . . Weapon . | . . . . . Parts Attached 23 | . 5 12 4 2 Power 3 | . 1 1 . 1 Engine 3 | . 1 1 . 1 Core . | . . . . . Reactor . | . . . . . Propulsion 8 | . . 6 2 . Treads 2 | . . . 2 . Leg 6 | . . 6 . . Wheel . | . . . . . Hover . | . . . . . Flight . | . . . . . Utility 4 | . . 2 2 . Device 2 | . . 2 . . Storage 2 | . . . 2 . Processor . | . . . . . Hackware . | . . . . . Protection . | . . . . . Artifact . | . . . . . Weapon 8 | . 4 3 . 1 Energy Gun 3 | . 1 2 . . Energy Cannon 1 | . . 1 . . Ballistic Gun 3 | . 3 . . . Ballistic Cannon . | . . . . . Launcher 1 | . . . . 1 Special Weapon . | . . . . . Impact Weapon . | . . . . . Slashing Weapon . | . . . . . Piercing Weapon . | . . . . . Special Melee Weapon . | . . . . . Unidentified Prototypes . | . . . . . Parts Lost 8 | . . 2 . 6 Power 1 | . . . . 1 Propulsion 2 | . . . . 2 Utility . | . . . . . Weapon 5 | . . 2 . 3 Highest Loss Streak 6 | . . 1 . 6 Average Slot Usage (%) 95 | . 85 96 100 92 Engine 14 | . 14 14 14 14 Treads 9 | . . . 19 28 Leg 18 | . 28 28 8 . Device 9 | . . 10 14 14 Storage 14 | . 14 14 14 14 Energy Gun 11 | . . 16 14 14 Energy Cannon 9 | . . 9 14 7 Ballistic Gun 6 | . 27 1 . . Naked Turns . | . . . . . Heaviest Build 42 | 9 11 14 42 42 Greatest Support 40 | 20 20 20 40 40 Greatest Overweight (x) 1 | . . . 1 1 Average Overweight (x) . | . . . . 1 Largest Inventory Capacity 12 | . 6 6 12 12 Average Capacity 8 | . 6 6 10 12 Most Carried 11 | . 6 6 11 11 Average Carried 7 | . 5 5 8 10 Final Capacity 12 | 6 6 6 12 12 Final Carried 11 | 6 6 6 11 9 Class Distribution -------------------- 60% | Mutant 39% | Scavenger-Mutant Dominant Class ---------------- Mutant | -10/Materials Scavenger-Mutant | -10/Mines Mutant | -10/Exiles Mutant | -9/Mines Resources | -11 -10 -10 -10 -9 ----------- Run | Scr Mat Min Exi Min Matter Collected 425 | 175 97 153 . . Remotely . | . . . . . Salvage Created 515 | . 185 274 . 56 Parts 28 | . 8 17 . 3 Haulers Intercepted . | . . . . . Recyclers Shooed 1 | . 1 . . . Parts Field Recycled . | . . . . . Retrieved Matter . | . . . . . Parts Self-Destructed . | . . . . . Prevented . | . . . . . Kills | -11 -10 -10 -10 -9 ------- Run | Scr Mat Min Exi Min Combat Hostiles Destroyed 13 | . 5 8 . . Guns 10 | . 5 5 . . Cannons 3 | . . 3 . . Classes Destroyed 3 | . 3 . . . Recycler 2 | . 1 . . 1 Swarmer 6 | . 3 3 . . Grunt 7 | . 2 5 . . Best Kill Streak 4 | . 4 2 . 1 Combat Bots Only 4 | . 4 2 . . Max Kills in Single Turn 1 | . 1 1 . 1 Gunslinging . | . . . . . Exploded . | . . . . . Melee . | . . . . . Uniques/NPCs Destroyed . | . . . . . Combat | -11 -10 -10 -10 -9 -------- Run | Scr Mat Min Exi Min Damage Taken 1360 | . 250 462 . 648 Core 261 | . 36 110 . 115 Absorbed by Shields . | . . . . . Core Remaining (%) 100 | 100 . . . . Volleys Fired 54 | . 22 27 . 5 Largest 2 | . 2 2 . 2 Hottest 100 | . 40 100 . 100 Shots Fired 106 | . 44 54 . 8 Gun 95 | . 44 47 . 4 Cannon 9 | . . 7 . 2 Launcher 2 | . . . . 2 Special . | . . . . . Kinetic 65 | . 44 21 . . Thermal 39 | . . 33 . 6 Explosive 2 | . . . . 2 Electromagnetic . | . . . . . Robot Hit Streak 12 | . 6 12 . 6 Robot Miss Streak 3 | . 3 3 . 2 Penetration Max . | . . . . . Secondary Targets . | . . . . . Shots Hit Robots 71 | . 27 39 . 5 Core Hits 31 | . 11 15 . 5 Critical Hits 1 | . 1 . . . Critical Kills . | . . . . . Critical Parts Destroyed 1 | . 1 . . . Melee Attacks . | . . . . . Impact . | . . . . . Slashing . | . . . . . Piercing . | . . . . . Sneak Attacks . | . . . . . Combat Hostiles . | . . . . . Follow-up Attacks . | . . . . . Damage Inflicted 785 | . 206 476 . 103 Guns 623 | . 206 385 . 32 Cannons 128 | . . 91 . 37 Explosions 34 | . . . . 34 Melee . | . . . . . Ramming . | . . . . . Kinetic 335 | . 206 129 . . Thermal 416 | . . 347 . 69 Explosive 34 | . . . . 34 Electromagnetic . | . . . . . Impact . | . . . . . Slashing . | . . . . . Piercing . | . . . . . Highest Corruption 1 | . 1 1 1 1 Average Corruption 1 | . 1 1 1 1 Corruption Purged . | . . . . . Effects 8 | . 1 5 2 . Message Errors 5 | . 1 3 1 . Energy Discharges 2 | . . 1 1 . Targeting Errors 1 | . . 1 . . Overload Shots . | . . . . . Overflow Damage 21 | . . . . 21 Projectiles . | . . . . . Explosions 21 | . . . . 21 Melee . | . . . . . Knockbacks . | . . . . . Impact . | . . . . . Kinetic . | . . . . . Secondary . | . . . . . Self-Inflicted Damage 22 | . . . . 22 Shots 1 | . . . . 1 Rammed . | . . . . . Targets Rammed . | . . . . . Kicked . | . . . . . Crushed . | . . . . . Highest Temperature 171 | . 18 171 . 5 Average Temperature 50 | . 9 62 . 5 Received Heat Transfer 369 | . 108 255 . 6 Siege Activations . | . . . . . Robots Corrupted . | . . . . . Combat Hostiles . | . . . . . Parts Fried . | . . . . . Impact Corruptions . | . . . . . Robots Melted . | . . . . . Combat Hostiles . | . . . . . Parts Melted 2 | . . 2 . . Heat Transferred 909 | . . 760 . 149 Parts Sabotaged . | . . . . . Parts Stolen . | . . . . . Parts Stripped . | . . . . . Power Chain Reactions . | . . . . . Missiles Intercepted . | . . . . . Alert | -11 -10 -10 -10 -9 ------- Run | Scr Mat Min Exi Min Peak Influence 320 | . 178 320 . 5 Initial 69 | . . 69 . . Average 109 | . 39 164 . . Maximum Alert Level 1 | . . 1 . . Low Security (%) 89 | . 100 81 . 100 Level 1 10 | . . 18 . . Level 2 . | . . . . . Level 3 . | . . . . . Level 4 . | . . . . . Level 5 . | . . . . . High Security . | . . . . . Max Security . | . . . . . Squads Dispatched . | . . . . . Investigation . | . . . . . Extermination . | . . . . . Reinforcement . | . . . . . Assault . | . . . . . Garrison . | . . . . . Intercept . | . . . . . Construction Impeded . | . . . . . Haulers Reinforced . | . . . . . Stealth | -11 -10 -10 -10 -9 --------- Run | Scr Mat Min Exi Min Distress Signals 1 | . 1 . . . Communications Jammed . | . . . . . Distress Signals . | . . . . . Times Spotted 41 | . 6 13 . 22 Peak Tracking Total 23 | . 5 3 . 23 Tactical Retreats 3 | . 1 2 . . Traps | -11 -10 -10 -10 -9 ------- Run | Scr Mat Min Exi Min Traps Triggered . | . . . . . Indirectly . | . . . . . Trap Hack Attempts . | . . . . . Triggered . | . . . . . Disarmed . | . . . . . Reprogrammed . | . . . . . Reused . | . . . . . Traps Extracted . | . . . . . Installed . | . . . . . Triggered . | . . . . . Machines | -11 -10 -10 -10 -9 ---------- Run | Scr Mat Min Exi Min Machines Disabled . | . . . . . Max in Single Turn . | . . . . . Machines Sabotaged . | . . . . . Garrisons Compromised . | . . . . . Overloaded Fab Kills . | . . . . . Fab Network Shutdowns . | . . . . . Hacking | -11 -10 -10 -10 -9 --------- Run | Scr Mat Min Exi Min Machines Accessed 3 | . 2 . 1 . Terminals 2 | . 2 . . . Fabricators . | . . . . . Repair Stations . | . . . . . Recycling Units . | . . . . . Scanalyzers . | . . . . . Garrison Access . | . . . . . Total Hacks 11 | . 10 . 1 . Successful 3 | . 2 . 1 . Failed 8 | . 8 . . . Catastrophic 3 | . 3 . . . Database Lockouts . | . . . . . Manual 10 | . 10 . . . Terminals 10 | . 10 . . . Fabricators . | . . . . . Repair Stations . | . . . . . Recycling Units . | . . . . . Scanalyzers . | . . . . . Garrison Access . | . . . . . Terminal Hacks 3 | . 2 . 1 . Record 1 | . . . 1 . Robot Analysis 1 | . 1 . . . Branch Access Points 1 | . 1 . . . Fabricator Hacks . | . . . . . Repair Station Hacks . | . . . . . Recycling Unit Hacks . | . . . . . Scanalyzer . | . . . . . Garrison Access Hacks . | . . . . . Unauthorized Hacks . | . . . . . Terminals . | . . . . . Fabricators . | . . . . . Repair Stations . | . . . . . Recycling Units . | . . . . . Scanalyzers . | . . . . . Garrison Access . | . . . . . Data Cores Recovered . | . . . . . Used . | . . . . . Hacking Detections 2 | . 2 . . . Full Trace Events 1 | . 1 . . . Feedback Events 1 | . 1 . . . Corruption 1 | . 1 . . . Feedback Blocked . | . . . . . Robot Schematics Acquired . | . . . . . Robots Built . | . . . . . Matter . | . . . . . Time . | . . . . . Total Robot Build Rating . | . . . . . Part Schematics Acquired . | . . . . . Parts Built . | . . . . . Matter . | . . . . . Time . | . . . . . Total Part Build Rating . | . . . . . Parts Repaired . | . . . . . Time . | . . . . . Parts Recycled . | . . . . . Recycled Matter . | . . . . . Retrieved Matter . | . . . . . Retrieved Components . | . . . . . Parts Scanalyzed . | . . . . . Part Schematics Acquired . | . . . . . Parts Damaged . | . . . . . Bothacking | -11 -10 -10 -10 -9 ------------ Run | Scr Mat Min Exi Min Used RIF Installer . | . . . . . Robots Hacked . | . . . . . Non-combat . | . . . . . Combat . | . . . . . Robot Hacks Applied . | . . . . . Relay Couplers Released . | . . . . . Robots Rewired . | . . . . . Allies Hacked . | . . . . . Hacks Repelled . | . . . . . Allies | -11 -10 -10 -10 -9 -------- Run | Scr Mat Min Exi Min Total Allies 2 | . . 2 . . Largest Group 2 | . . 2 . . Highest-Rated Group 39 | . . 39 . . Highest-Rated Ally 31 | . . 31 . . Total Orders . | . . . . . Ally Attacks 11 | . . 11 . . Total Damage 148 | . . 148 . . Kills 3 | . . 3 . . Allies Corrupted . | . . . . . Allies Melted . | . . . . . Intel | -11 -10 -10 -10 -9 ------- Run | Scr Mat Min Exi Min Robot Analysis Total 1 | . 1 . . . Derelict Logs Recovered 2 | . . 2 . . Drone Launches . | . . . . . Drone Recoveries . | . . . . . Exploration | -11 -10 -10 -10 -9 ------------- Run | Scr Mat Min Exi Min Turns Passed 1607 | . 354 497 730 26 Spaces Moved 990 | 1 233 288 462 6 Core . | . . . . . Treads 281 | . . . 275 6 Legs 709 | 1 233 288 187 . Wheels . | . . . . . Hover . | . . . . . Flight . | . . . . . Fastest Speed 120 | 120 120 120 120 180 Average Speed 137 | 120 120 120 155 180 Slowest Speed 180 | 120 120 120 180 180 Overloaded Moves . | . . . . . Propulsion Burnouts . | . . . . . Robots Hopped . | . . . . . Cave-ins Triggered . | . . . . . Exploration Rate (%) 37 | 3 38 71 65 10 Regions Visited 4 Branch Regions 3 Pre-discovered Areas 3 | . . 2 1 . Known Exits Taken 1 | . 1 . . . Unknown Exits Taken 3 | 1 . 1 1 . Scrap Searched 1 | . . 1 . . Spaces Dug . | . . . . . Terrain Destroyed 3 | . . . . 3 Melee . | . . . . . Projectile . | . . . . . AOE 3 | . . . . 3 Terrain Rammed . | . . . . . Walls Destroyed . | . . . . . Machines Disabled . | . . . . . Actions | -11 -10 -10 -10 -9 --------- Run | Scr Mat Min Exi Min Total 1157 | . 274 394 476 13 Wait 57 | . 2 55 . . Move 986 | . 232 287 461 6 Hop . | . . . . . Pick Up 16 | . 5 4 7 . Fast Attach 3 | . 1 2 . . Attach 4 | . . 2 . 2 Detach . | . . . . . Swap 16 | . 4 8 4 . Drop 21 | . 8 9 4 . Fire 54 | . 22 27 . 5 Melee . | . . . . . Ram . | . . . . . Kick . | . . . . . Crush . | . . . . . Escape Stasis . | . . . . . Rewire . | . . . . . Trap . | . . . . . Miscellaneous . | . . . . . Route ------- -11/Scrapyard -10/Materials (discovered 2 exits: [*Mat] / *Min) -10/Mines (discovered 3 exits: [*Mat x2] / *Exi) -10/Exiles (discovered 2 exits: [*Min x2]) -9/Mines History --------- Turn | Location | Event 1 | -11/Scrapyard | Discovered new exit (range 0) 1 | -11/Scrapyard | Entered Materials 186 | -10/Materials | Discovered new exit (range 4) 203 | -10/Materials | Identified exit to Mines 344 | -10/Materials | Build established: Mutant 355 | -10/Materials | Entered Mines 394 | -10/Mines | Core integrity fell below 50% 465 | -10/Mines | Learned location of Zion (-6) 465 | -10/Mines | Discovered new exit (range 11) 661 | -10/Mines | Discovered new exit (range 8) 729 | -10/Mines | Learned location of Storage (-8) 738 | -10/Mines | Build established: Scavenger-Mutant 847 | -10/Mines | Deemed a non-threat by the Exiles lab entrance 847 | -10/Mines | Discovered new exit (range 5) 852 | -10/Mines | Entered Exiles 870 | -10/Exiles | Discovered new exit (range 15) 899 | -10/Exiles | Met 8R-AWN 916 | -10/Exiles | Met EX-HEX 995 | -10/Exiles | Met EX-DEC 1371 | -10/Exiles | Build established: Mutant 1460 | -10/Exiles | Met EX-BIN 1566 | -10/Exiles | Discovered new exit (range 11) 1582 | -10/Exiles | Entered Mines 1583 | -9/Mines | Assembled infested the area 1607 | -9/Mines | Core integrity fell below 20% 1608 | -9/Mines | Destroyed by D-53 Grenadier with Mini Grenade Launcher Last Messages --------------- 01595_ R-06 Scavenger collects Com. Wheel. 01597_ as-95583 destroyed. 01597_ as-54856 destroyed. 01598_ The unstable cave ceiling collapses. 01598_ as-35284 destroyed. 01598_ Beam Cannon destroyed. 01598_ Ion Engine destroyed. 01599_ as-94252 destroyed. 01602_ R-06 Scavenger collects Imp. Terrain Scanner. 01603_ The unstable cave ceiling collapses. 01603_ R-06 Scavenger destroyed. 01605_ Lgt. Treads destroyed. 01605_ Sml. Laser destroyed. 01605_ Destroyed Sml. Laser. 01606_ The unstable cave ceiling collapses. 01607_ A derelict emerges from the shadows. 01607_ Lgt. Treads destroyed. 01607_ Grenade Launcher destroyed. 01608_ 9I-2LY(g): "Some of my friends down here think you need a mining laser when you travel the depths." Map ----- +----------------------------------------------------+ | ????????????????????????????????????????????? | | ????????????????????????????????????????????? | | ????????????????????????????????????????????? | | ????????????????????????????????????????????? | | ????????????????????????????????????????????? | | ????????????????????????????????????????????? | | ????????????????????????????????????????????? | | ????????????????????????????????????????????? | | ????????????????????????????????????????????? | | ???????????????????????????? #??????????????? | | ????????????????????????# ###???????????? | | ?????????????????????### ##?????????? | | ????????????????????## " ##????????? | | ????????????????#???? ????????? | | ????????????????? ???# ????????? | | ?????????????????? ??#!=* % ?????????? | | ???????????????????"###%= #u??????????? | | ???????????????????? =u! #??????????? | | ?????????????????????##% # #??????????? | | ?????????????????????# #= ???????????? | | ?????????????????????# %##???????????? | | ????????????????????### ##??????????? | | ???????????????????## dd #??????????? | | ???????????????????# #??????????? | | ???????????????????# ##??????????? | | ???????????????????## @ #??????????? | | ????????????????????# #??????????? | | ????????????????????# #??????????? | | ????????????????????## ##??????????? | | ?????????????????????## #####???????????? | | ?????????????????????? ## ???????????????? | | ????????????????????? ? ??????????????? | | ????????????????????? ?? g ??????????????? | | ????????????????????# ?? #### ?????????????? | | ????????????????????#???#????###????????????? | | ????????????????????????????????????????????? | | ????????????????????????????????????????????? | | ????????????????????????????????????????????? | | ????????????????????????????????????????????? | | ????????????????????????????????????????????? | | ????????????????????????????????????????????? | | ????????????????????????????????????????????? | | ????????????????????????????????????????????? | | ????????????????????????????????????????????? | | ????????????????????????????????????????????? | | ????????????????????????????????????????????? | | ????????????????????????????????????????????? | | ????????????????????????????????????????????? | | ????????????????????????????????????????????? | | ????????????????????????????????????????????? | +----------------------------------------------------+ Best States ------------- Heat Dissipation 39 Energy Generation 10 Energy Capacity 250 Matter Stores 300 Matter Capacity 300 Sight Range 16 Terrain Scan Density 10 Evasion (%) 40 Recoil Reduction 2 Item Schematics ----------------- None Robot Schematics ------------------ None Fabricated ------------ Nothing Alien Tech Used ----------------- None Achievements -------------- None Challenges ------------ None Game ------ Seed DisruptionCloakingShield Manual? 0 Play Time 00:11:37 Cumulative 200.8 hours Start 2021.06.14 @ 17:23:22 End 2021.06.14 @ 17:34:14 Sessions 1 Manual Loads 0 Difficulty Rogue Special Mode None Game No. 113 Rogue 111 Adventurer 1 Explorer 1 Win Type - Total 2 Types 2/0/0/0/0/0/0/0/0 Lore% 62 Gallery% 75 Achievement% 57 Wizard Run 0 Options --------- ASCII 0 Keyboard 1 Movement Numpad Keybinds 1 Fullscreen 1 Font 24/Terminus Map View 76x50 Tactical HUD 1 Map Filters NONE Filters NONE Steam 1 RUN: 6786cb9f-26e8-4c40-9cca-b3699c3a1acb